[Event "FIDE World School-ch O-11 2025"]
[Site "Vrnjacka Banja"]
[Date "2025.03.28"]
[Round "9.1"]
[White "Zhauynbay, Alimzhan"]
[Black "Zabelin, Platon"]
[Result "1/2-1/2"]
[Annotator "NA RC"]
[ECO "B76"]
[WhiteElo "1927"]
[BlackElo "1831"]
[PlyCount "82"]
[EventDate "2025.03.19"]
[EventType "swiss"]
[EventCountry "SRB"]
[SourceTitle "playchess.com"]
[Source "ChessBase"]
[SourceQuality "1"]
[TimeControl "5400+30"]

1. e4 {[%emt 0:00:04]} c5 {[%emt 0:00:54]} 2. Nf3 {[%emt 0:00:12]} d6 {[%emt 0:00:04]} 3. d4 {[%emt 0:00:05]} cxd4 {[%emt 0:00:04]} 4. Nxd4 {[%emt 0:00:04]} Nf6 {[%emt 0:00:06]} 5. Nc3 {[%emt 0:00:07]} g6 {[%emt 0:00:09]} 6. Be3 {[%emt 0:00:09]} Bg7 {[%emt 0:00:54]} 7. f3 {[%emt 0:00:06]} O-O {[%emt 0:00:23]} 8. Qd2 {[%emt 0:00:04]} Nc6 {[%emt 0:00:06]} 9. O-O-O {[%emt 0:00:05]} d5 {[%emt 0:00:14]} 10. exd5 {[%emt 0:01:04]} Nxd5 {[%emt 0:00:07]} 11. Nxc6 {[%emt 0:00:08]} bxc6 {[%emt 0:00:07]} 12. Bd4 {[%emt 0:00:05]} e5 {[%emt 1:33:22]} 13. Bc5 {[%emt 0:00:29]} Re8 {[%emt 0:00:00]} 14. Ne4 {[%emt 0:00:08] B76: Sicilian Dragon: Yugoslav Attack, 9 g4 and 9 0-0-0.} Qc7 {[%emt 0:00:00] 14...Qc7 is better than 14...Be6.} 15. h4 {[%emt 0:01:08]} f5 {[%emt 0:00:00]} 16. Nd6 {[%emt 0:02:01]} Rd8 {[%emt 0:00:00]} 17. Nxc8 {[%emt 0:00:34]} Raxc8 {[%emt 0:00:00]} 18. h5 {[%emt 0:00:58]} Nb6 {[%emt 0:00:00]} 19. Bxb6 {[%emt 0:01:37]} Rxd2 {[%emt 0:00:00]} 20. Bc4+ {[%emt 0:00:42]} Kf8 {[%emt 0:00:00]} 21. Bxc7 {[%emt 0:01:45]} Rxd1+ {[%emt 0:00:00]} 22. Rxd1 {[%emt 0:00:07]} Rxc7 {[%emt 0:00:00]} 23. hxg6 {[%emt 0:00:31]} Bh6+ {[%emt 0:00:00]} 24. Kb1 {[%emt 0:00:02]} hxg6 {[%emt 0:00:00]} 25. Rd6 {[%emt 0:04:36]} Kg7 {[%emt 0:00:00]} 26. Re6 {[%emt 0:06:17]} Rd7 {[%emt 0:00:00]} 27. Bd3 {[%emt 0:10:16]} Bf4 {[%emt 0:00:00]} 28. a3 $146 {[%emt 0:03:26]} ({Predecessor:} 28. a4 Rd4 29. Rxc6 e4 30. fxe4 fxe4 31. Bb5 e3 32. Bd3 g5 33. a5 Kf7 34. Rc4 {1-0 Moussard,J (2686)-Zelbel,P (2456) Bundesliga 2223 2022 (12.6)}) 28... c5 $1 $11 {[%emt 0:00:00] keeps the balance.} 29. Rc6 {[%emt 0:06:13]} Be3 {[%emt 0:00:00]} 30. Re6 {[%emt 0:03:02]} Bd4 $16 {[%emt 0:00:00]} 31. Ka2 {[%emt 0:07:42]} Rd8 {[%emt 0:00:00]} 32. g4 {[%emt 0:11:17]} e4 {[%emt 0:00:00]} 33. fxe4 {[%emt 0:01:18]} c4 {[%emt 0:00:00]} 34. Be2 {[%emt 0:04:49]} f4 {[%emt 0:00:00]} 35. g5 {[%emt 0:07:42]} Rd7 {[%emt 0:00:00]} 36. Bxc4 {[%emt 0:04:41]} f3 {[%emt 0:00:00]} 37. e5 {[%emt 0:04:05]} Rc7 {[%emt 0:00:52]} 38. Bd3 {[%emt 0:02:11]} Rf7 {[%emt 0:04:23]} 39. Rxg6+ {[%emt 0:05:05]} Kf8 {[%emt 0:00:00]} 40. Rf6 {[%emt 0:00:29]} Bxe5 {[%emt 0:00:31]} 41. Rxf7+ {[%emt 0:00:06]} Kxf7 {[%emt 0:00:05]} 1/2-1/2

[Event "FIDE World School-ch O-11 2025"]
[Site "Vrnjacka Banja"]
[Date "2025.03.28"]
[Round "9.2"]
[White "Uzdemir, Ali Poyraz"]
[Black "Yildiz, Ali Aras"]
[Result "1/2-1/2"]
[Annotator "NA RC"]
[ECO "C19"]
[WhiteElo "2184"]
[BlackElo "1932"]
[PlyCount "109"]
[EventDate "2025.03.19"]
[EventType "swiss"]
[EventCountry "SRB"]
[SourceTitle "playchess.com"]
[Source "ChessBase"]
[SourceQuality "1"]
[TimeControl "5400+30"]

1. e4 {[%emt 0:00:07]} e6 {[%emt 0:00:11]} 2. d4 {[%emt 0:00:19]} d5 {[%emt 0:00:08]} 3. Nc3 {[%emt 0:00:08]} Bb4 {[%emt 0:00:36]} 4. e5 {[%emt 0:00:09]} c5 {[%emt 0:00:48]} 5. a3 {[%emt 0:00:04]} Bxc3+ {[%emt 0:00:17]} 6. bxc3 {[%emt 0:03:11]} Ne7 {[%emt 0:00:45]} 7. Nf3 {[%emt 0:05:03]} b6 {[%emt 0:01:44]} 8. h4 {[%emt 0:09:58]} Ba6 {[%emt 0:03:57]} 9. Bxa6 {[%emt 0:00:07]} Nxa6 {[%emt 0:00:08]} 10. Qe2 {[%emt 0:00:25]} c4 {[%emt 0:08:31]} 11. a4 {[%emt 0:01:37]} Qd7 {[%emt 0:02:28]} 12. h5 {[%emt 0:03:20]} h6 {[%emt 0:01:24]} 13. Nh4 {[%emt 0:04:28]} O-O-O {[%emt 0:04:29]} 14. Ba3 {[%emt 0:12:43]} g5 {[%emt 0:09:04]} 15. hxg6 {[%emt 0:05:19]} Nxg6 {[%emt 0:00:53]} 16. Nxg6 {[%emt 0:00:32]} fxg6 $14 {[%emt 0:00:09]} 17. Qg4 {[%emt 0:04:36]} g5 {[%emt 0:09:39]} 18. a5 {[%emt 0:06:24]} Nc7 {[%emt 0:05:33]} 19. axb6 {[%emt 0:05:35]} axb6 {[%emt 0:00:57]} 20. Bd6 {[%emt 0:00:10]} Nb5 {[%emt 0:12:53]} 21. Ra8+ {[%emt 0:01:35]} Kb7 {[%emt 0:00:53]} 22. Rxd8 {[%emt 0:00:04]} Rxd8 {[%emt 0:02:10]} 23. Bb4 {[%emt 0:01:09]} Rh8 {[%emt 0:03:30]} 24. Rh3 {[%emt 0:06:41]} Qh7 {[%emt 0:06:33]} 25. Kd2 {[%emt 0:04:28]} Nc7 {[%emt 0:04:55]} 26. Bd6 {[%emt 0:05:13]} Ra8 {[%emt 0:04:18]} 27. Qd1 {[%emt 0:07:42]} Nb5 {[%emt 0:04:12]} 28. Bb4 {[%emt 0:00:16]} Ra4 {[%emt 0:01:26]} 29. Bf8 {[%emt 0:03:01]} Qe4 {[%emt 0:06:14]} 30. Qf3 {[%emt 0:00:53]} Nxc3 {[%emt 0:00:56]} 31. Qxc3 {[%emt 0:08:09]} Qf4+ {[%emt 0:00:31]} 32. Ke2 {[%emt 0:00:06]} Qxf8 {[%emt 0:00:21]} 33. Rf3 {[%emt 0:00:03]} Qe8 {[%emt 0:01:26]} 34. Rf6 {[%emt 0:01:23]} Qh5+ {[%emt 0:00:31]} 35. Kd2 {[%emt 0:00:35]} Qh1 {[%emt 0:01:07]} 36. Qh3 {[%emt 0:02:12]} Qa1 {[%emt 0:01:52]} 37. Qc3 {[%emt 0:00:16]} Qf1 {[%emt 0:00:52]} 38. Rf7+ {[%emt 0:00:32]} Ka6 {[%emt 0:00:31]} 39. Rf8 {[%emt 0:00:35]} Qxg2 {[%emt 0:02:22]} 40. Qb2 {[%emt 0:00:16]} Kb7 {[%emt 0:00:43]} 41. Qb5 {[%emt 0:00:36]} c3+ {[%emt 0:00:22]} 42. Kxc3 {[%emt 0:00:31]} Rc4+ {[%emt 0:00:29]} 43. Kb2 {[%emt 0:00:24]} Qe4 {[%emt 0:00:38]} 44. Qd7+ {[%emt 0:00:05]} Rc7 {[%emt 0:00:08]} 45. Qa4 {[%emt 0:00:02]} Rc8 {[%emt 0:00:51]} 46. Rxc8 {[%emt 0:00:55]} Kxc8 {[%emt 0:00:01]} 47. Qc6+ {[%emt 0:00:05]} Kb8 {[%emt 0:00:17]} 48. Qxb6+ {[%emt 0:00:03]} Ka8 {[%emt 0:00:05]} 49. f3 {[%emt 0:01:25]} Qf4 {[%emt 0:00:45]} 50. Ka2 {[%emt 0:00:56]} Qd2 {[%emt 0:00:35]} 51. Kb3 {[%emt 0:00:48]} Qe2 {[%emt 0:00:54]} 52. Qc6+ {[%emt 0:00:32]} Kb8 {[%emt 0:00:31]} 53. Kb4 {[%emt 0:00:35]} Qd2+ {[%emt 0:00:42]} 54. Kb3 {[%emt 0:00:36]} Qxd4 {[%emt 0:00:33]} 55. Qxe6 {[%emt 0:00:25]} 1/2-1/2

[Event "FIDE World School-ch O-11 2025"]
[Site "Vrnjacka Banja"]
[Date "2025.03.28"]
[Round "9.3"]
[White "Tulegen, Ramazan"]
[Black "Ivanovic, Leonid"]
[Result "0-1"]
[Annotator "NA RC"]
[ECO "B47"]
[WhiteElo "1973"]
[BlackElo "2015"]
[PlyCount "58"]
[EventDate "2025.03.19"]
[EventType "swiss"]
[EventCountry "SRB"]
[SourceTitle "playchess.com"]
[Source "ChessBase"]
[SourceQuality "1"]
[TimeControl "5400+30"]

1. e4 {[%emt 0:00:45]} c5 {[%emt 0:00:10]} 2. Nf3 {[%emt 0:01:05]} e6 {[%emt 0:00:14]} 3. d4 {[%emt 0:00:09]} cxd4 {[%emt 0:00:09]} 4. Nxd4 {[%emt 0:00:11]} Nc6 {[%emt 0:00:11]} 5. Nc3 {[%emt 0:01:06]} Qc7 {[%emt 0:00:12]} 6. g3 {[%emt 0:00:21]} a6 {[%emt 0:00:19]} 7. Bg2 {[%emt 0:01:36]} Nf6 {[%emt 0:00:12]} 8. O-O {[%emt 0:01:38]} Bc5 {[%emt 0:00:20]} 9. Nb3 {[%emt 0:14:17]} Ba7 {[%emt 0:00:26]} 10. Bf4 {[%emt 0:07:30]} Ne5 {[%emt 0:03:10]} 11. Qd2 {[%emt 0:06:48]} d6 {[%emt 0:03:45]} 12. Rad1 {[%emt 0:10:30]} Bb8 {[%emt 0:00:17]} 13. Bg5 {[%emt 0:06:35]} Nfd7 {[%emt 0:06:52]} 14. Qe2 {[%emt 0:08:00]} b5 {[%emt 0:04:07]} 15. a3 $16 {[%emt 0:05:17]} (15. Nd4 $14) 15... Nc4 {[%emt 0:08:47]} 16. Bc1 {[%emt 0:05:29]} O-O {[%emt 0:08:44]} 17. e5 {[%emt 0:06:47]} d5 {[%emt 0:04:46]} 18. f4 {[%emt 0:01:00]} Ba7+ {[%emt 0:06:02]} 19. Kh1 {[%emt 0:00:17]} Ndb6 {[%emt 0:01:18]} 20. Qe1 {[%emt 0:03:13]} Na4 {[%emt 0:10:46]} 21. Nxa4 {[%emt 0:00:48]} bxa4 {[%emt 0:00:07]} 22. Nd4 {[%emt 0:00:19]} Rb8 {[%emt 0:01:10]} 23. Qc3 {[%emt 0:03:18]} Qb7 {[%emt 0:04:28]} 24. b4 {[%emt 0:09:01]} axb3 {[%emt 0:02:28]} 25. Nxb3 {[%emt 0:01:08]} Qc7 {[%emt 0:10:25]} 26. Rfe1 {[%emt 0:03:42]} a5 {[%emt 0:03:27]} 27. f5 {[%emt 0:01:11]} exf5 {[%emt 0:00:42]} 28. Bxd5 {[%emt 0:00:51]} Bb7 {[%emt 0:05:03]} 29. Bf3 {[%emt 0:01:29]} Nxe5 {[%emt 0:03:03]} 0-1

[Event "FIDE World School-ch O-11 2025"]
[Site "Vrnjacka Banja"]
[Date "2025.03.28"]
[Round "9.4"]
[White "Kiringoda, Thehas Rithmitha"]
[Black "Jumanazarov, Ibrohim"]
[Result "0-1"]
[Annotator "NA RC"]
[ECO "B36"]
[WhiteElo "1868"]
[BlackElo "1869"]
[PlyCount "162"]
[EventDate "2025.03.19"]
[EventType "swiss"]
[EventCountry "SRB"]
[SourceTitle "playchess.com"]
[Source "ChessBase"]
[SourceQuality "1"]
[TimeControl "5400+30"]

1. e4 {[%emt 0:00:07]} c5 {[%emt 0:07:00]} 2. Nf3 {[%emt 0:00:08]} g6 {[%emt 0:00:15]} 3. d4 {[%emt 0:01:29]} cxd4 {[%emt 0:00:36]} 4. Nxd4 {[%emt 0:00:11]} Nc6 {[%emt 0:00:11]} 5. c4 {[%emt 0:00:50]} Nf6 {[%emt 0:00:20]} 6. Nc3 {[%emt 0:00:06]} Nxd4 {[%emt 0:00:03]} 7. Qxd4 {[%emt 0:00:07]} d6 {[%emt 0:00:02]} 8. f3 {[%emt 0:01:10]} Bg7 {[%emt 0:00:07]} 9. Be3 {[%emt 0:00:33]} O-O {[%emt 0:00:16]} 10. Qd3 {[%emt 0:00:15]} Bd7 {[%emt 0:05:01]} 11. Be2 {[%emt 0:00:28]} a6 {[%emt 0:02:45]} 12. a4 {[%emt 0:02:40]} Qa5 {[%emt 0:02:27]} 13. O-O {[%emt 0:01:34]} Rfc8 {[%emt 0:03:05]} 14. Rfc1 {[%emt 0:09:59]} Be6 {[%emt 0:18:42]} 15. b3 {[%emt 0:02:44]} Nd7 {[%emt 0:02:08]} 16. Rab1 {[%emt 0:02:27]} Qd8 {[%emt 0:05:22]} 17. Nd5 {[%emt 0:06:05]} Nc5 {[%emt 0:05:53]} 18. Qd2 {[%emt 0:01:33]} a5 {[%emt 0:03:09]} 19. Nc3 {[%emt 0:07:19]} Qe8 {[%emt 0:11:48]} 20. Kh1 {[%emt 0:06:43]} f5 {[%emt 0:06:55]} 21. Bd4 {[%emt 0:05:21]} Qf8 {[%emt 0:02:10]} 22. Bxg7 {[%emt 0:03:35]} Qxg7 {[%emt 0:00:41]} 23. exf5 {[%emt 0:01:42]} Bxf5 {[%emt 0:01:09]} 24. Rb2 {[%emt 0:00:22]} Rf8 {[%emt 0:02:04]} 25. Bf1 {[%emt 0:07:01]} Bd7 {[%emt 0:02:58]} 26. Nd5 {[%emt 0:07:12]} Bc6 {[%emt 0:01:10]} 27. Qc3 {[%emt 0:01:07]} e6 {[%emt 0:03:42]} 28. Qxg7+ {[%emt 0:01:37]} Kxg7 {[%emt 0:00:09]} 29. Nc3 {[%emt 0:00:25]} Rad8 {[%emt 0:01:40]} 30. Kg1 {[%emt 0:01:05]} h5 {[%emt 0:02:13]} 31. Rd1 {[%emt 0:03:43]} e5 {[%emt 0:04:11]} 32. Bd3 {[%emt 0:02:19]} Rf4 {[%emt 0:02:21]} 33. Bc2 {[%emt 0:25:03]} Rd4 {[%emt 0:03:59]} 34. Rbb1 {[%emt 0:00:00]} Rxd1+ {[%emt 0:00:54]} 35. Rxd1 {[%emt 0:00:00]} Ne6 {[%emt 0:00:15]} 36. Ne2 {[%emt 0:00:00]} Kf6 {[%emt 0:01:09]} 37. Kf2 {[%emt 0:00:00]} h4 {[%emt 0:01:24]} 38. h3 {[%emt 0:00:00]} g5 {[%emt 0:00:31]} 39. Rd2 {[%emt 0:00:00]} Ke7 {[%emt 0:00:39]} 40. Ke3 {[%emt 0:00:00]} Rf8 {[%emt 0:00:30]} 41. Rd1 {[%emt 0:00:00]} Nc5 {[%emt 0:00:29]} 42. Rb1 {[%emt 0:00:00]} Rd8 {[%emt 0:00:30]} 43. Nc3 {[%emt 0:00:00]} Ne6 {[%emt 0:00:26]} 44. b4 {[%emt 0:00:00]} axb4 {[%emt 0:00:35]} 45. Rxb4 {[%emt 0:00:00]} Nc5 {[%emt 0:00:30]} 46. Ne4 {[%emt 0:00:00]} Bxe4 {[%emt 0:00:26]} 47. Bxe4 {[%emt 0:00:00]} Ra8 {[%emt 0:00:29]} 48. Bc2 {[%emt 0:00:00]} Kd7 {[%emt 0:00:23]} 49. Rb5 {[%emt 0:00:00]} Kc7 {[%emt 0:00:33]} 50. a5 {[%emt 0:00:00]} Ra6 {[%emt 0:00:41]} 51. Be4 {[%emt 0:00:00]} Ra8 {[%emt 0:00:31]} 52. Bd5 {[%emt 0:00:00]} Rf8 {[%emt 0:00:24]} 53. Rb2 {[%emt 0:00:00]} Ra8 {[%emt 0:00:36]} 54. Ra2 {[%emt 0:00:08]} Ra7 {[%emt 0:00:29]} 55. Ra3 {[%emt 0:01:34]} Kc8 {[%emt 0:00:21]} 56. f4 {[%emt 0:01:58]} gxf4+ {[%emt 0:00:39]} 57. Kf3 {[%emt 0:00:07]} b6 {[%emt 0:00:29]} 58. a6 {[%emt 0:00:03]} Nxa6 {[%emt 0:00:31]} 59. Kg4 {[%emt 0:00:19]} Rg7+ {[%emt 0:00:23]} 60. Kxh4 {[%emt 0:00:09]} Nc7 {[%emt 0:00:23]} 61. Bc6 {[%emt 0:00:13]} Kd8 {[%emt 0:00:43]} 62. Rb3 {[%emt 0:01:58]} Ke7 {[%emt 0:00:31]} 63. Rxb6 {[%emt 0:00:39]} Kf6 {[%emt 0:00:31]} 64. Be4 {[%emt 0:00:04]} Ke7 {[%emt 0:00:29]} 65. Kh5 {[%emt 0:01:03]} Ne6 {[%emt 0:00:27]} 66. Kh6 {[%emt 0:01:49]} Rg3 {[%emt 0:00:28]} 67. Rb7+ {[%emt 0:01:51]} Kf6 {[%emt 0:00:35]} 68. Bd5 {[%emt 0:00:43]} Rg6+ {[%emt 0:00:26]} 69. Kh7 {[%emt 0:01:20]} Ng5+ {[%emt 0:00:26]} 70. Kh8 {[%emt 0:00:08]} e4 {[%emt 0:00:34]} 71. Rd7 {[%emt 0:00:48]} Ke5 {[%emt 0:00:29]} 72. Re7+ {[%emt 0:00:38]} Ne6 {[%emt 0:00:34]} 73. Kh7 {[%emt 0:00:47]} Rf6 {[%emt 0:00:15]} 74. h4 {[%emt 0:02:40]} Kf5 {[%emt 0:00:32]} 75. Re8 {[%emt 0:00:53]} f3 {[%emt 0:00:46]} 76. Bxe4+ {[%emt 0:00:30]} Kxe4 {[%emt 0:00:18]} 77. gxf3+ {[%emt 0:00:05]} Kxf3 {[%emt 0:00:38]} 78. h5 {[%emt 0:00:16]} Kg4 {[%emt 0:00:06]} 79. Rb8 {[%emt 0:01:12]} Kxh5 {[%emt 0:00:39]} 80. Rb6 {[%emt 0:00:06]} Kg5 {[%emt 0:00:14]} 81. Kg8 {[%emt 0:00:22]} Kg6 {[%emt 0:01:37]} 0-1

[Event "FIDE World School-ch O-11 2025"]
[Site "Vrnjacka Banja"]
[Date "2025.03.28"]
[Round "9.5"]
[White "Lishoy Gengis Paratazham, Dildarav"]
[Black "Bai, Moxuan"]
[Result "1/2-1/2"]
[Annotator "NA RC"]
[ECO "B20"]
[WhiteElo "2071"]
[BlackElo "1726"]
[PlyCount "70"]
[EventDate "2025.03.19"]
[EventType "swiss"]
[EventCountry "SRB"]
[SourceTitle "playchess.com"]
[Source "ChessBase"]
[SourceQuality "1"]
[TimeControl "5400+30"]

1. e4 {[%emt 0:00:04]} c5 {[%emt 0:00:08]} 2. d3 {[%emt 0:00:13]} Nc6 {[%emt 0:00:06]} 3. g3 {[%emt 0:00:04]} d5 {[%emt 0:00:03]} 4. Bg2 {[%emt 0:00:16]} Nf6 {[%emt 0:00:41]} 5. exd5 {[%emt 0:00:09]} Nxd5 {[%emt 0:00:14]} 6. Nc3 {[%emt 0:00:09]} Be6 {[%emt 0:04:38]} 7. Nge2 {[%emt 0:15:43]} Nxc3 {[%emt 0:11:45]} 8. bxc3 {[%emt 0:12:22]} Bd5 {[%emt 0:00:44]} 9. f3 {[%emt 0:01:01]} e5 {[%emt 0:01:45]} 10. c4 {[%emt 0:03:10]} Be6 {[%emt 0:01:06]} 11. O-O {[%emt 0:03:02]} Nd4 {[%emt 0:02:16]} 12. c3 {[%emt 0:01:39]} Nxe2+ {[%emt 0:03:48]} 13. Qxe2 {[%emt 0:00:05]} Bd6 {[%emt 0:05:19]} 14. f4 {[%emt 0:06:14]} Qc7 {[%emt 0:03:21] [#]} 15. Rb1 $1 {[%emt 0:06:16]} Rb8 $18 {[%emt 0:02:24]} (15... exf4 {keeps fighting.} 16. Bxf4 (16. Rxb7 Qc8 $16) 16... O-O) 16. f5 {[%emt 0:08:59]} Bd7 {[%emt 0:00:06]} 17. f6 {[%emt 0:03:33]} g6 {[%emt 0:03:26]} 18. Bh6 {[%emt 0:06:10]} Kd8 {[%emt 0:02:27]} 19. Kh1 {[%emt 0:06:53]} Re8 {[%emt 0:01:28]} 20. Rbd1 {[%emt 0:06:23]} Bc6 {[%emt 0:05:59]} 21. Be4 {[%emt 0:07:43]} Qd7 {[%emt 0:03:08]} 22. Qg2 {[%emt 0:01:22]} Kc7 {[%emt 0:00:23]} 23. Rd2 {[%emt 0:00:42]} Rbd8 {[%emt 0:01:37]} 24. Rfd1 {[%emt 0:00:52]} Bxe4 {[%emt 0:01:43]} 25. dxe4 {[%emt 0:01:20]} Qe6 {[%emt 0:00:05]} 26. Qf1 {[%emt 0:01:48]} Kc8 {[%emt 0:01:03]} 27. Be3 {[%emt 0:01:20]} Bf8 {[%emt 0:03:52]} 28. Rd5 {[%emt 0:02:21]} Rxd5 {[%emt 0:01:07]} 29. exd5 {[%emt 0:00:51]} Qg4 {[%emt 0:00:59]} 30. Kg1 {[%emt 0:00:36]} Bd6 {[%emt 0:00:10]} 31. Re1 {[%emt 0:00:50]} h5 {[%emt 0:01:45]} 32. Qe2 {[%emt 0:00:19]} Qh3 {[%emt 0:01:46]} 33. Qg2 {[%emt 0:00:28]} Qg4 {[%emt 0:00:25]} 34. Qe2 {[%emt 0:00:20]} Qh3 {[%emt 0:00:05]} 35. Qg2 {[%emt 0:01:10]} Qg4 {[%emt 0:00:09]} 1/2-1/2

[Event "FIDE World School-ch O-11 2025"]
[Site "Vrnjacka Banja"]
[Date "2025.03.28"]
[Round "9.6"]
[White "Pavlovic, Aleksej"]
[Black "Perunovic, Uros"]
[Result "1-0"]
[Annotator "NA RC"]
[ECO "E97"]
[WhiteElo "1571"]
[BlackElo "1986"]
[PlyCount "131"]
[EventDate "2025.03.19"]
[EventType "swiss"]
[EventCountry "SRB"]
[SourceTitle "playchess.com"]
[Source "ChessBase"]
[SourceQuality "1"]
[TimeControl "5400+30"]

1. d4 {[%emt 0:00:09]} Nf6 {[%emt 1:31:00]} 2. c4 {[%emt 0:00:10]} g6 {[%emt 0:00:00]} 3. Nc3 {[%emt 0:00:24]} Bg7 {[%emt 0:00:00]} 4. e4 {[%emt 0:00:36]} d6 {[%emt 0:00:00]} 5. Nf3 {[%emt 0:00:42]} O-O {[%emt 0:00:00]} 6. Be2 {[%emt 0:00:40]} e5 {[%emt 0:00:00]} 7. O-O {[%emt 0:01:08]} Nc6 {[%emt 0:00:00]} 8. dxe5 {[%emt 0:01:04]} dxe5 {[%emt 0:00:00]} 9. Bg5 {[%emt 0:02:56]} Qxd1 {[%emt 0:00:00]} 10. Raxd1 {[%emt 0:01:23]} Bg4 {[%emt 0:00:00] E97: King's Indian: Classical Main Line (6...e5 7 0-0 Nc6): 8 Be3 and 8 d5 Ne7, not 9 Ne1.} 11. h3 {[%emt 0:02:38]} Bxf3 {[%emt 0:00:00]} 12. Bxf3 {[%emt 0:01:59]} Nd4 {[%emt 0:00:00]} 13. Nd5 {[%emt 0:03:42]} Nxd5 {[%emt 0:00:00]} 14. cxd5 {[%emt 0:00:44]} f5 {[%emt 0:06:30]} 15. Be3 {[%emt 0:03:07]} Nxf3+ {[%emt 0:00:00]} 16. gxf3 {[%emt 0:00:14]} Rfd8 {[%emt 0:00:00]} 17. Rc1 {[%emt 0:04:16]} f4 {[%emt 0:00:00]} 18. Bc5 {[%emt 0:02:18]} b6 {[%emt 0:00:00]} 19. Ba3 {[%emt 0:00:19]} Rac8 {[%emt 0:00:00] [#]} 20. Rc6 $1 {[%emt 0:03:31]} Rd7 {[%emt 0:00:00]} 21. Rfc1 $18 {[%emt 0:03:42]} Kf7 {[%emt 0:00:00]} 22. Bd6 {[%emt 0:18:00]} Ke8 {[%emt 0:00:00]} 23. Bxc7 {[%emt 0:04:37]} Ra8 {[%emt 0:00:00]} 24. Bd6 {[%emt 0:02:17]} Rad8 {[%emt 0:00:00]} 25. Ba3 {[%emt 0:00:13]} Kf7 {[%emt 0:00:00]} 26. b3 {[%emt 0:03:26]} Bf8 {[%emt 0:00:00]} 27. Bxf8 {[%emt 0:02:24]} Rxf8 {[%emt 0:00:00]} 28. Kf1 {[%emt 0:00:59]} Rfd8 {[%emt 0:00:00]} 29. Ke2 {[%emt 0:00:47]} Kf8 {[%emt 0:00:00]} 30. Kd3 {[%emt 0:03:39]} Kf7 {[%emt 0:00:00]} 31. Kc4 {[%emt 0:01:37]} Rd6 {[%emt 0:00:00]} 32. Rxd6 {[%emt 0:00:53]} Rxd6 {[%emt 0:00:00]} 33. Kb5 {[%emt 0:00:25]} Rd7 {[%emt 0:00:00]} 34. Rc6 {[%emt 0:00:55]} Ke7 {[%emt 0:00:00]} 35. Rc8 {[%emt 0:01:41]} Kd6 {[%emt 0:00:00]} 36. Rc6+ {[%emt 0:00:32]} Ke7 {[%emt 0:00:00]} 37. Re6+ {[%emt 0:00:51]} Kd8 {[%emt 0:00:00]} 38. d6 {[%emt 0:00:36]} g5 {[%emt 0:00:00]} 39. Kc6 {[%emt 0:00:30]} h5 {[%emt 0:00:00]} 40. Rxe5 {[%emt 0:00:36]} Rg7 {[%emt 0:00:00]} 41. Rf5 {[%emt 0:01:20]} Ke8 {[%emt 0:00:00]} 42. d7+ {[%emt 0:01:26]} Rxd7 {[%emt 0:00:00]} 43. Rf8+ {[%emt 0:00:09]} Ke7 {[%emt 0:00:00]} 44. Rf7+ {[%emt 0:00:12]} Kxf7 {[%emt 0:00:00]} 45. Kxd7 {[%emt 0:00:07]} Kf6 {[%emt 0:00:00]} 46. Kd6 {[%emt 0:00:16]} g4 {[%emt 0:00:00]} 47. fxg4 {[%emt 0:00:13]} hxg4 {[%emt 0:00:00]} 48. hxg4 {[%emt 0:00:05]} Kg5 {[%emt 0:00:00]} 49. e5 {[%emt 0:00:50]} Kxg4 {[%emt 0:00:00]} 50. e6 {[%emt 0:00:04]} Kf3 {[%emt 0:00:00]} 51. e7 {[%emt 0:00:04]} Kxf2 {[%emt 0:00:00]} 52. e8=Q {[%emt 0:00:08]} f3 {[%emt 0:00:00]} 53. Qe4 {[%emt 0:00:16]} Kg3 {[%emt 0:00:00]} 54. Kc6 {[%emt 0:01:28]} f2 {[%emt 0:00:00]} 55. Qe2 {[%emt 0:00:06]} Kg2 {[%emt 0:00:00]} 56. Qg4+ {[%emt 0:00:09]} Kh1 {[%emt 0:00:00]} 57. Qf3+ {[%emt 0:00:07]} Kg1 {[%emt 0:00:00]} 58. Qg3+ {[%emt 0:00:11]} Kf1 {[%emt 0:00:00]} 59. Kb7 {[%emt 0:00:07]} b5 {[%emt 0:00:00]} 60. Kxa7 {[%emt 0:00:25]} b4 {[%emt 0:00:00]} 61. Kb6 {[%emt 0:00:38]} Ke2 {[%emt 0:00:00]} 62. Qg2 {[%emt 0:00:14]} Ke1 {[%emt 0:00:00]} 63. Kb5 {[%emt 0:00:23]} f1=Q+ {[%emt 0:00:00]} 64. Qxf1+ {[%emt 0:00:07]} Kxf1 {[%emt 0:00:00]} 65. Kxb4 {[%emt 0:00:09]} Ke2 {[%emt 0:00:00]} 66. Kc5 {[%emt 0:00:11]} 1-0